bitfinex/quotes_SOLUSD_20251120
["timestamp","ask_amount","ask_price","bid_price","bid_amount"]
[1763659785741,9.78882769,132.19,132.15,7.9573961]
[1763659785942,11.68882769,132.19,132.14,7.9573961]
[1763659786176,12.38882769,132.19,132.15,7.9573961]
[1763659786358,19.64622379,132.19,132.09,1.9]
[1763659786671,9.78882769,132.17,132.15,7.9573961]
[1763659787163,9.78882769,132.2,132.16,7.9573961]
[1763659787339,9.78882769,132.2,132.17,7.9573961]
[1763659787539,9.78882769,132.2,132.15,7.9573961]
[1763659787540,9.78882769,132.18,132.15,7.9573961]
[1763659787965,9.78882769,132.18,132.13,0.68]
[1763659788273,9.78882769,132.21,132.13,0.68]
[1763659788569,10.48882769,132.21,132.15,18.12096]
[1763659788868,9.78882769,132.21,132.19,7.9573961]
[1763659789273,11.68882769,132.22,132.19,7.9573961]
[1763659789452,11.68882769,132.22,132.21,7.9573961]
[1763659790046,11.68882769,132.22,132.2,7.9573961]
[1763659790252,11.68882769,132.22,132.13,26.48896309]
[1763659790253,10.46882769,132.21,132.13,0.66]
[1763659790661,9.78882769,132.21,132.17,7.9573961]
[1763659790854,10.46882769,132.21,132.17,7.9573961]
[1763659791047,1.9,132.22,132.18,7.9573961]
[1763659791260,1.9,132.22,132.2,7.9573961]
[1763659791471,2.58,132.22,132.16,8.6173961]
[1763659791844,50.0,132.24,132.21,7.9573961]
[1763659791845,9.78882769,132.24,132.21,7.9573961]
[1763659792049,9.78882769,132.24,132.23,7.9573961]
[1763659792263,9.78882769,132.24,132.22,7.9573961]
[1763659792567,10.46882769,132.24,132.23,7.9573961]
[1763659792983,10.46882769,132.24,132.22,7.9573961]
[1763659793281,10.46882769,132.24,132.19,18.78096]
[1763659793282,0.68,132.23,132.19,18.12096]
[1763659793573,0.68,132.23,132.16,8.6173961]
[1763659793574,0.68,132.23,132.2,7.9573961]
[1763659793771,0.68,132.23,132.17,18.12096]
[1763659793980,0.68,132.23,132.2,7.9573961]
[1763659794154,0.68,132.23,132.17,18.12096]
[1763659794356,9.78882769,132.22,132.13,0.75683039]
[1763659794562,9.78882769,132.2,132.17,7.9573961]
[1763659795068,0.68,132.19,132.13,18.78096]
[1763659795323,50.0,132.23,132.18,7.9573961]
[1763659795477,10.46882769,132.25,132.22,7.9573961]
[1763659795676,10.46882769,132.25,132.17,0.66]
[1763659795862,9.78882769,132.23,132.2,7.9573961]
[1763659796187,9.78882769,132.23,132.16,26.7383561]
[1763659796477,11.68882769,132.22,132.21,7.9573961]
[1763659796664,11.68882769,132.22,132.17,0.66]
[1763659796872,12.36882769,132.22,132.21,12.45789917]
[1763659797250,1.9,132.22,132.21,12.45789917]
[1763659798476,1.9,132.22,132.18,0.66]
[1763659798650,1.9,132.22,132.21,12.45789917]
[1763659798853,2.58,132.22,132.21,12.45789917]
[1763659799075,0.68,132.22,132.21,12.45789917]
[1763659799279,9.78882769,132.24,132.21,12.45789917]
[1763659799482,0.68,132.23,132.18,0.66]
[1763659799691,0.68,132.23,132.21,12.45789917]
[1763659799859,0.68,132.23,132.22,12.45789917]
[1763659800176,0.68,132.23,132.17,18.12096]
[1763659800393,9.78882769,132.21,132.14,0.66]
[1763659800682,102.6,132.2,132.19,12.45789917]
[1763659800856,2.58,132.21,132.15,18.12096]
[1763659801060,102.6,132.19,132.15,18.12096]
[1763659801486,102.6,132.19,132.16,0.66]
[1763659801687,102.6,132.19,132.15,18.78096]
[1763659802190,102.6,132.19,132.18,12.45789917]
[1763659802397,101.88,132.23,132.21,18.12096]
[1763659802560,0.2,132.28,132.25,18.12096]
[1763659802754,0.2,132.28,132.27,12.45789917]
[1763659803170,0.2,132.28,132.24,18.12096]
[1763659803486,0.88,132.28,132.24,18.12096]
[1763659803689,0.88,132.28,132.21,18.78096]
[1763659803900,0.88,132.28,132.2,1.9]
[1763659803901,0.68,132.27,132.2,1.9]
[1763659804056,0.68,132.27,132.23,12.45789917]
[1763659804057,50.68,132.27,132.23,12.45789917]
[1763659804254,50.68,132.27,132.22,12.45789917]
[1763659804489,9.78882769,132.25,132.22,12.45789917]
[1763659804863,0.68,132.24,132.22,12.45789917]
[1763659805062,24.82672686,132.24,132.13,0.66]
[1763659805302,59.78882769,132.23,132.19,12.45789917]
[1763659805585,0.68,132.24,132.22,12.45789917]
[1763659805986,9.78882769,132.26,132.23,12.45789917]
[1763659806290,0.2,132.28,132.25,30.57885917]
[1763659806495,0.2,132.28,132.27,12.45789917]
[1763659807574,0.2,132.28,132.27,30.57885917]
[1763659807984,0.88,132.28,132.27,18.12096]
[1763659808189,9.78882769,132.27,132.2,1.9]
[1763659808392,12.36882769,132.27,132.23,12.45789917]
[1763659808690,0.88,132.28,132.26,12.45789917]
[1763659808987,0.88,132.28,132.27,12.45789917]
[1763659809396,0.2,132.28,132.27,12.45789917]
[1763659809762,0.2,132.28,132.25,20.02096]
[1763659809966,0.2,132.28,132.27,12.45789917]
[1763659810386,0.2,132.28,132.25,18.12096]
[1763659810593,0.2,132.28,132.27,12.45789917]
[1763659810764,0.2,132.28,132.24,18.12096]
[1763659810964,0.2,132.28,132.27,12.45789917]
[1763659811492,0.88,132.28,132.27,12.45789917]
[1763659812575,0.2,132.28,132.24,1.9]
[1763659812779,0.2,132.28,132.26,18.12096]
[1763659812986,0.2,132.28,132.27,12.45789917]
[1763659813367,1.9,132.36,132.3,18.12096]
[1763659813570,0.68,132.36,132.3,30.57885917]
[1763659813768,0.68,132.39,132.35,12.45789917]
[1763659813969,1.9,132.4,132.33,18.12096]
[1763659814191,1.9,132.4,132.3,12.45789917]
[1763659814192,13.13789917,132.38,132.28,1.9]
[1763659814394,0.68,132.38,132.35,12.45789917]
[1763659814568,0.68,132.37,132.36,12.45789917]
[1763659815077,0.68,132.37,132.31,18.12096]
[1763659815280,0.68,132.37,132.35,12.45789917]
[1763659815591,9.78882769,132.36,132.28,20.02096]
[1763659815787,9.78882769,132.36,132.32,12.45789917]
[1763659815973,10.46882769,132.35,132.34,12.45789917]
[1763659816173,9.78882769,132.4,132.34,12.45789917]
[1763659816392,10.46882769,132.4,132.38,12.45789917]
[1763659816569,0.68,132.39,132.3,12.45789917]
[1763659816910,62.45789917,132.38,132.34,12.45789917]
[1763659817070,9.78882769,132.37,132.3,12.45789917]
[1763659817269,10.46882769,132.37,132.29,18.12096]
[1763659817492,0.68,132.36,132.35,12.45789917]
[1763659817692,0.68,132.36,132.29,18.12096]
[1763659817904,0.68,132.36,132.35,12.45789917]
[1763659818101,10.46882769,132.39,132.35,12.45789917]
[1763659818311,10.46882769,132.39,132.37,12.45789917]
[1763659818520,0.68,132.39,132.38,12.45789917]
[1763659818799,9.88882769,132.41,132.34,1.9]
[1763659819004,22.34672686,132.41,132.33,18.12096]
[1763659819320,9.78882769,132.39,132.37,12.45789917]
[1763659819490,0.68,132.4,132.38,12.45789917]
[1763659819685,0.68,132.4,132.33,18.12096]
[1763659819896,9.78882769,132.39,132.31,1.9]
[1763659820096,0.68,132.4,132.38,12.45789917]
[1763659820418,0.68,132.4,132.38,18.12096]
[1763659820697,9.78882769,132.39,132.36,12.45789917]
[1763659820899,0.68,132.4,132.38,12.45789917]
[1763659821204,9.78882769,132.39,132.36,18.12096]
[1763659821385,50.0,132.38,132.34,12.45789917]
[1763659821582,0.7,132.38,132.36,12.45789917]
[1763659821778,0.8,132.41,132.37,12.45789917]
[1763659821999,0.8,132.41,132.3,14.45789916]
[1763659822000,0.8,132.41,132.4,12.45789917]
[1763659822284,0.1,132.41,132.4,12.45789917]
[1763659822492,0.1,132.41,132.37,18.12096]
[1763659822697,0.1,132.41,132.4,12.45789917]
[1763659822901,0.1,132.41,132.37,18.12096]
[1763659823207,0.1,132.41,132.4,30.57885917]
[1763659823415,0.1,132.41,132.4,32.47885917]
[1763659823612,0.1,132.41,132.4,18.12096]
[1763659823772,0.1,132.41,132.4,30.57885917]
[1763659823974,0.1,132.41,132.4,12.45789917]
[1763659824177,0.8,132.41,132.36,20.02096]
[1763659824374,0.8,132.41,132.4,12.45789917]
[1763659824375,0.1,132.41,132.4,12.45789917]
[1763659824681,0.1,132.41,132.4,30.57885917]
[1763659825178,0.1,132.41,132.4,14.35789917]
[1763659825394,0.8,132.41,132.36,1.9]
[1763659825601,0.1,132.41,132.4,12.45789917]
[1763659826917,0.8,132.41,132.36,18.12096]
[1763659827202,9.78882769,132.4,132.3,12.45789917]
[1763659827404,9.78882769,132.4,132.38,12.45789917]
[1763659827606,0.1,132.41,132.33,18.12096]
[1763659827777,0.1,132.41,132.39,12.45789917]
[1763659828104,0.1,132.41,132.34,1.9]
[1763659828410,0.1,132.41,132.4,12.45789917]
[1763659828910,0.1,132.41,132.39,1.9]
[1763659829075,0.1,132.41,132.4,30.57885917]
[1763659829278,0.8,132.41,132.4,30.57885917]
[1763659829504,0.8,132.41,132.4,12.45789917]
[1763659829812,0.1,132.41,132.4,12.45789917]
[1763659830682,0.1,132.41,132.4,32.47885917]
[1763659831917,0.1,132.42,132.41,18.12096]
[1763659832088,0.1,132.42,132.41,30.57885917]
[1763659832293,0.1,132.44,132.43,12.45789917]
[1763659832500,0.1,132.45,132.43,30.57885917]
[1763659832712,0.1,132.45,132.44,12.45789917]
[1763659833499,0.1,132.45,132.39,12.45789917]
[1763659833500,0.8,132.45,132.39,12.45789917]
[1763659833816,72.24672686,132.44,132.3,12.45789917]
[1763659834108,0.8,132.45,132.42,12.45789917]
[1763659834312,0.7,132.44,132.42,12.45789917]
[1763659834474,0.7,132.44,132.43,12.45789917]
[1763659834675,0.7,132.44,132.38,18.12096]
[1763659834880,0.7,132.44,132.43,12.45789917]
[1763659835284,0.7,132.44,132.42,12.45789917]
[1763659835494,0.7,132.44,132.37,1.9]
[1763659835715,0.7,132.44,132.43,12.45789917]
[1763659836212,59.78882769,132.43,132.3,12.45789917]
[1763659836378,12.45789917,132.42,132.32,1.9]
[1763659836597,12.45789917,132.42,132.38,12.45789917]
[1763659836598,0.7,132.42,132.38,12.45789917]
[1763659836803,0.8,132.45,132.41,12.45789917]
[1763659837109,0.8,132.45,132.44,12.45789917]
[1763659837309,0.1,132.45,132.44,12.45789917]
[1763659837617,0.1,132.45,132.44,30.57885917]
[1763659838211,0.1,132.45,132.44,18.12096]
[1763659838411,0.1,132.45,132.44,30.57885917]
[1763659838610,0.8,132.45,132.44,12.45789917]
[1763659838829,0.1,132.45,132.44,12.45789917]
[1763659839740,0.1,132.49,132.48,18.12096]
[1763659839903,0.1,132.49,132.48,43.03675834]
[1763659840357,0.1,132.49,132.47,1.9]
[1763659840524,0.1,132.49,132.48,12.45789917]
[1763659840903,0.1,132.49,132.48,24.91579834]
[1763659841308,0.7,132.55,132.51,18.12096]
[1763659841602,0.7,132.58,132.51,18.12096]
[1763659841823,0.7,132.58,132.57,12.45789917]
[1763659842026,0.1,132.59,132.57,12.45789917]
[1763659842331,0.8,132.59,132.58,12.45789917]
[1763659842529,0.8,132.59,132.55,18.12096]
[1763659842697,0.8,132.59,132.58,12.45789917]
[1763659843221,0.8,132.59,132.51,9.44632818]
[1763659843222,9.78882769,132.58,132.51,20.02096]
[1763659843423,0.8,132.59,132.57,12.45789917]
[1763659843737,0.8,132.59,132.58,12.45789917]
[1763659843915,0.1,132.59,132.58,12.45789917]
[1763659844309,0.8,132.59,132.58,12.45789917]
[1763659844739,0.1,132.59,132.58,12.45789917]
[1763659847716,0.8,132.59,132.52,0.66]
[1763659847912,0.1,132.59,132.58,12.45789917]
[1763659848330,0.1,132.59,132.58,30.57885917]
[1763659849741,0.8,132.59,132.58,12.45789917]
[1763659850118,0.1,132.59,132.58,12.45789917]
[1763659850510,0.1,132.59,132.57,18.12096]
[1763659850729,0.1,132.59,132.53,20.02096]
[1763659850730,0.78,132.59,132.53,20.02096]
[1763659850934,0.78,132.59,132.58,12.45789917]
[1763659851214,0.78,132.59,132.53,1.9]
[1763659851424,10.56882769,132.59,132.53,1.9]
[1763659851628,9.78882769,132.58,132.55,12.45789917]
[1763659851830,10.46882769,132.58,132.55,12.45789917]
[1763659852037,9.78882769,132.56,132.5,1.9]
[1763659852267,9.78882769,132.56,132.54,12.45789917]
[1763659852546,0.68,132.57,132.55,12.45789917]
[1763659852845,0.68,132.57,132.56,12.45789917]
[1763659853047,0.68,132.57,132.55,12.45789917]
[1763659853251,0.68,132.57,132.54,12.45789917]
[1763659853435,0.68,132.57,132.56,12.45789917]
[1763659853633,59.88882769,132.59,132.56,12.45789917]
[1763659853848,0.1,132.59,132.54,2.57]
[1763659854029,0.78,132.59,132.58,12.45789917]
[1763659854224,0.78,132.59,132.54,2.57]
[1763659854225,0.1,132.59,132.57,12.45789917]
[1763659854569,0.1,132.59,132.58,12.45789917]
[1763659854919,0.1,132.59,132.58,13.12789917]
[1763659855157,0.1,132.59,132.58,12.45789917]
[1763659855324,0.1,132.59,132.58,30.57885917]
[1763659855525,0.1,132.59,132.58,18.12096]
[1763659855848,0.78,132.59,132.58,12.45789917]
[1763659856021,0.1,132.59,132.58,12.45789917]
[1763659856959,0.1,132.59,132.58,26.02471574]
[1763659857127,0.78,132.59,132.58,26.02471574]
[1763659857838,0.78,132.59,132.58,7.90375574]
[1763659858047,10.56882769,132.59,132.57,7.90375574]
[1763659858257,0.78,132.59,132.57,7.90375574]
[1763659858433,0.68,132.58,132.57,7.90375574]
[1763659858946,0.1,132.59,132.57,7.90375574]
[1763659859119,0.1,132.59,132.54,20.02096]
[1763659859120,0.68,132.58,132.54,1.9]
[1763659859540,0.1,132.59,132.53,18.12096]
[1763659860144,0.68,132.58,132.53,18.12096]
[1763659860337,0.68,132.58,132.56,7.90375574]
[1763659860538,0.68,132.58,132.57,7.90375574]
[1763659860929,0.1,132.59,132.57,7.90375574]
[1763659861129,0.1,132.59,132.58,18.12096]
[1763659861330,0.78,132.59,132.58,26.02471574]
[1763659861642,0.78,132.59,132.58,7.90375574]
[1763659861643,0.1,132.59,132.58,7.90375574]
[1763659861842,0.78,132.59,132.58,7.90375574]
[1763659862158,0.1,132.59,132.58,7.90375574]
[1763659862529,0.78,132.59,132.51,12.35882769]
[1763659862749,0.78,132.59,132.58,7.90375574]
[1763659863342,0.78,132.59,132.55,18.12096]
[1763659863545,0.78,132.59,132.57,7.90375574]
[1763659863756,9.78882769,132.58,132.54,18.12096]
[1763659864057,9.78882769,132.55,132.48,7.90375574]
[1763659864238,9.78882769,132.55,132.52,7.90375574]
[1763659864564,0.68,132.55,132.54,7.90375574]
[1763659864862,9.78882769,132.57,132.54,7.90375574]
[1763659865157,10.46882769,132.57,132.53,7.90375574]
[1763659865377,9.78882769,132.55,132.53,7.90375574]
[1763659865530,9.78882769,132.55,132.51,7.90375574]
[1763659865728,9.78882769,132.55,132.4,9.90375573]
[1763659865729,9.78882769,132.53,132.42,1.9]
[1763659866031,10.46882769,132.54,132.52,7.90375574]
[1763659866233,1.9,132.55,132.53,7.90375574]
[1763659866432,9.88882769,132.59,132.5,18.12096]
[1763659866669,9.88882769,132.59,132.56,7.90375574]
[1763659866670,0.68,132.58,132.56,7.90375574]
[1763659866870,0.68,132.58,132.5,18.12096]
[1763659867175,0.68,132.58,132.57,7.90375574]
[1763659867340,0.68,132.58,132.56,7.90375574]
[1763659867736,9.88882769,132.59,132.57,7.90375574]
[1763659867737,0.1,132.59,132.57,7.90375574]
[1763659867969,0.1,132.59,132.58,7.90375574]
[1763659868159,0.78,132.59,132.53,9.78882769]
[1763659868468,0.78,132.59,132.51,0.75466002]
[1763659868469,50.78,132.59,132.56,7.90375574]
[1763659868666,0.78,132.59,132.57,7.90375574]
[1763659868851,0.68,132.58,132.57,7.90375574]
[1763659869439,0.68,132.58,132.42,0.75517293]
[1763659869440,9.78882769,132.56,132.46,0.67]
[1763659869668,17.69258343,132.56,132.44,2.57]
[1763659869975,50.0,132.57,132.44,2.57]
[1763659869976,67.69258343,132.54,132.44,1.9]
[1763659870271,9.78882769,132.51,132.41,0.87]
[1763659870439,9.78882769,132.49,132.48,7.90375574]
[1763659870647,0.68,132.5,132.48,7.90375574]
[1763659870945,0.68,132.5,132.49,7.90375574]
[1763659871143,0.68,132.5,132.47,18.12096]
[1763659871144,0.68,132.5,132.43,0.67]
[1763659871345,0.68,132.5,132.41,0.2]
[1763659871548,9.78882769,132.49,132.41,0.2]
[1763659871782,17.69258343,132.49,132.41,0.2]
[1763659871952,9.78882769,132.47,132.41,0.2]
[1763659872153,9.78882769,132.47,132.45,7.90375574]
[1763659872358,10.46882769,132.46,132.45,7.90375574]
[1763659872584,9.78882769,132.45,132.41,0.2]
[1763659872767,0.68,132.45,132.41,0.2]
[1763659873063,9.78882769,132.47,132.42,7.90375574]
[1763659873064,0.68,132.44,132.42,7.90375574]
[1763659873249,0.68,132.44,132.41,0.2]
[1763659873458,0.68,132.44,132.43,7.90375574]
[1763659873849,0.68,132.44,132.41,0.2]
[1763659874077,0.68,132.44,132.42,7.90375574]
[1763659874377,50.68,132.44,132.41,8.10375574]
[1763659874678,9.78882769,132.43,132.32,7.90375574]
[1763659874858,9.78882769,132.43,132.38,7.90375574]
[1763659874859,50.0,132.42,132.38,7.90375574]
[1763659875171,50.68,132.42,132.38,7.90375574]
[1763659875384,50.0,132.4,132.31,1.9]
[1763659875545,9.78882769,132.39,132.36,7.90375574]
[1763659875744,10.46882769,132.39,132.37,7.90375574]
[1763659875941,50.0,132.4,132.32,7.90375574]
[1763659875942,0.68,132.4,132.38,7.90375574]
[1763659876149,0.68,132.4,132.33,18.79096]
[1763659876357,0.68,132.4,132.39,7.90375574]
[1763659876576,0.68,132.4,132.32,7.90375574]
[1763659876754,0.68,132.4,132.31,2.57]
[1763659876755,9.78882769,132.39,132.28,0.67]
[1763659876954,9.78882769,132.39,132.26,24.60638652]
[1763659876955,9.78882769,132.36,132.26,2.57]
[1763659877155,0.68,132.38,132.35,7.90375574]
[1763659877371,0.68,132.38,132.36,7.90375574]
[1763659877372,10.46882769,132.38,132.36,7.90375574]
[1763659877589,0.68,132.38,132.37,7.90375574]
[1763659877947,0.68,132.38,132.32,7.90375574]
[1763659877948,10.46882769,132.38,132.32,7.90375574]
[1763659878147,9.78882769,132.37,132.35,7.90375574]
[1763659878385,9.78882769,132.37,132.26,2.57]
[1763659878386,60.46882769,132.37,132.26,2.57]
[1763659878697,0.68,132.36,132.33,7.90375574]
[1763659878864,0.68,132.36,132.34,7.90375574]
[1763659879054,11.68882769,132.35,132.33,7.90375574]
[1763659879479,0.68,132.34,132.33,7.90375574]
[1763659879895,9.78882769,132.33,132.31,7.90375574]
[1763659880067,9.78882769,132.33,132.24,8.57375574]
[1763659880068,17.69258343,132.33,132.24,7.90375574]
[1763659880262,9.78882769,132.31,132.22,2.61]
[1763659880463,1.9,132.3,132.27,7.90375574]
[1763659880678,50.0,132.25,132.17,3.95145571]
[1763659880865,11.68882769,132.24,132.15,0.71]
[1763659881196,50.0,132.19,132.14,0.2]
[1763659881443,9.78882769,132.18,132.14,0.2]
[1763659881555,0.71,132.22,132.17,7.90375574]
[1763659881760,0.71,132.22,132.14,0.91]
[1763659881761,0.71,132.22,132.19,7.90375574]
[1763659882176,9.80375574,132.24,132.21,7.90375574]
[1763659882177,1.9,132.24,132.21,7.90375574]
[1763659882386,2.61,132.24,132.22,7.90375574]
[1763659882559,2.61,132.24,132.16,8.61375574]
[1763659882560,1.9,132.24,132.23,7.90375574]
[1763659882760,0.71,132.24,132.22,7.90375574]
[1763659882992,0.71,132.24,132.21,7.90375574]
[1763659883170,2.61,132.23,132.14,2.81]
[1763659883485,2.61,132.23,132.19,7.90375574]
[1763659883690,10.49882769,132.22,132.2,7.90375574]
[1763659883900,10.49882769,132.22,132.18,7.90375574]
[1763659884190,9.78882769,132.2,132.19,7.90375574]
[1763659884563,1.9,132.23,132.19,7.90375574]
[1763659884890,9.78882769,132.24,132.22,7.90375574]
[1763659885261,9.78882769,132.24,132.17,18.12096]
[1763659885262,0.71,132.24,132.23,7.90375574]
[1763659885456,1.9,132.26,132.23,7.90375574]
[1763659885661,1.9,132.26,132.2,18.12096]
[1763659885662,0.71,132.25,132.2,18.12096]
[1763659885861,1.9,132.26,132.24,7.90375574]
[1763659886074,0.71,132.28,132.25,7.90375574]
[1763659886288,0.71,132.28,132.27,7.90375574]
[1763659886499,9.78882769,132.27,132.26,7.90375574]
[1763659886865,0.71,132.28,132.26,7.90375574]
[1763659886866,9.78882769,132.28,132.26,7.90375574]
[1763659887063,10.49882769,132.28,132.19,18.83096]
[1763659887259,50.71,132.27,132.23,7.90375574]
[1763659887686,9.78882769,132.25,132.23,7.90375574]
[1763659888005,11.68882769,132.25,132.17,0.71]
[1763659888296,12.39882769,132.28,132.21,18.12096]
[1763659888473,9.78882769,132.27,132.24,7.90375574]
[1763659888678,10.49882769,132.27,132.24,7.90375574]
[1763659888879,9.78882769,132.25,132.18,18.12096]
[1763659889073,9.78882769,132.25,132.23,7.90375574]
[1763659889281,10.49882769,132.25,132.23,7.90375574]
[1763659889482,10.49882769,132.24,132.23,7.90375574]
[1763659889672,9.78882769,132.24,132.23,7.90375574]
[1763659889874,9.78882769,132.24,132.23,6.90375574]
[1763659890076,9.78882769,132.24,132.23,7.90375574]
[1763659890285,59.78882769,132.23,132.14,0.86]
[1763659890484,60.46882769,132.23,132.19,7.90375574]
[1763659890694,9.78882769,132.21,132.14,0.86]
[1763659890897,9.78882769,132.21,132.19,7.90375574]
[1763659891096,9.78882769,132.19,132.17,7.90375574]
[1763659891412,9.78882769,132.21,132.18,7.90375574]
[1763659891576,9.78882769,132.21,132.19,7.90375574]
[1763659891777,10.46882769,132.21,132.18,7.90375574]
[1763659891976,0.68,132.2,132.19,7.90375574]
[1763659892177,0.68,132.24,132.19,7.90375574]
[1763659892387,0.68,132.23,132.19,18.12096]
[1763659892603,0.68,132.23,132.22,7.90375574]
[1763659892810,0.68,132.23,132.19,18.12096]
[1763659893124,60.46882769,132.23,132.15,18.12096]
[1763659893280,9.78882769,132.21,132.19,7.90375574]
[1763659893680,9.78882769,132.19,132.14,0.2]
[1763659894188,9.78882769,132.17,132.16,7.90375574]
[1763659894390,59.78882769,132.17,132.14,0.2]
[1763659894607,59.78882769,132.15,132.12,0.2]
[1763659894808,9.78882769,132.13,132.12,0.2]
[1763659894987,20.12095999,132.19,132.12,0.2]
[1763659894988,50.0,132.18,132.12,8.10375574]
[1763659895309,10.46882769,132.18,132.17,7.90375574]
[1763659895678,9.78882769,132.19,132.17,7.90375574]
[1763659896012,9.78882769,132.19,132.12,0.2]
[1763659896013,50.0,132.18,132.12,0.2]
[1763659896217,50.68,132.18,132.12,0.2]
[1763659896517,9.78882769,132.2,132.17,7.90375574]
[1763659896720,9.78882769,132.2,132.19,7.90375574]
[1763659896878,10.46882769,132.2,132.13,0.66]
[1763659897599,10.46882769,132.2,132.17,7.90375574]
[1763659897600,0.68,132.19,132.17,7.90375574]
[1763659897809,50.68,132.19,132.16,7.90375574]
[1763659898115,9.78882769,132.18,132.16,7.90375574]
[1763659898280,12.36882769,132.18,132.17,7.90375574]
[1763659898477,1.9,132.18,132.17,7.90375574]
[1763659898682,9.78882769,132.2,132.14,0.66]
[1763659898886,9.78882769,132.2,132.19,7.90375574]
[1763659899292,10.46882769,132.2,132.19,7.90375574]
[1763659899621,10.46882769,132.2,132.17,7.90375574]
[1763659900113,0.68,132.19,132.17,7.90375574]
[1763659900321,0.68,132.19,132.12,0.86]
[1763659900322,50.0,132.18,132.12,0.2]
[1763659900481,11.68882769,132.17,132.14,7.90375574]
[1763659900806,11.68882769,132.17,132.12,0.2]
[1763659900807,12.36882769,132.17,132.16,7.90375574]
[1763659900992,12.36882769,132.17,132.15,7.90375574]
[1763659900993,11.68882769,132.17,132.15,7.90375574]
[1763659901201,1.9,132.17,132.16,7.90375574]
[1763659901583,9.78882769,132.14,132.12,0.2]
[1763659901782,1.9,132.13,132.12,0.2]
[1763659902087,2.58,132.13,132.12,0.2]
[1763659902480,12.36882769,132.13,132.12,0.2]
[1763659902897,11.68882769,132.13,132.12,0.2]
[1763659903114,12.36882769,132.13,132.12,0.2]
[1763659903320,9.78882769,132.16,132.12,8.10375574]
[1763659903493,9.78882769,132.16,132.15,7.90375574]
[1763659903694,10.46882769,132.16,132.15,7.90375574]
[1763659903981,50.0,132.15,132.12,0.2]
[1763659904225,52.58,132.15,132.12,8.10375574]
[1763659904396,9.78882769,132.14,132.13,7.90375574]
[1763659904595,10.46882769,132.14,132.12,0.2]
[1763659904908,10.46882769,132.14,132.12,8.10375574]
[1763659904909,0.68,132.13,132.12,8.10375574]
[1763659905113,0.68,132.13,132.12,0.2]
[1763659905483,68.37258343,132.13,132.12,0.2]
[1763659905714,50.0,132.11,132.07,7.90375574]
[1763659906017,9.78882769,132.09,132.03,0.66]
[1763659906223,59.78882769,132.09,132.02,0.2]
[1763659906399,9.78882769,132.07,132.02,0.2]
[1763659906602,9.78882769,132.05,132.03,7.90375574]
[1763659907089,9.78882769,132.05,132.04,7.90375574]
[1763659907290,1.9,132.06,132.04,7.90375574]
[1763659907496,9.78882769,132.04,132.02,0.2]
[1763659907904,0.68,132.04,132.02,0.2]
[1763659908226,11.68882769,132.05,132.02,0.2]
[1763659908420,9.78882769,132.03,132.02,0.2]
[1763659908591,9.78882769,132.03,132.02,8.10375574]
[1763659908791,1.9,132.05,132.02,8.10375574]
[1763659908995,1.9,132.05,132.04,7.90375574]
[1763659909193,10.46882769,132.04,132.02,0.2]
[1763659909498,60.46882769,132.04,132.02,0.2]
[1763659909693,18.37258343,132.03,132.02,0.2]
[1763659909886,59.78882769,132.02,132.01,0.2]
[1763659910097,68.37258343,132.02,132.01,0.2]
[1763659911091,60.46882769,132.02,132.01,0.2]
[1763659911422,70.27258343,132.02,132.01,0.2]
[1763659911936,62.36882769,132.02,132.01,0.2]
[1763659912406,70.27258343,132.02,132.01,0.2]
[1763659912914,11.78882768,132.01,132.0,0.2]
[1763659913123,18.39258343,132.01,132.0,0.2]
[1763659913322,28.60978769,132.01,132.0,0.2]
[1763659913636,36.51354343,132.01,132.0,0.2]
[1763659913805,12.38882769,132.01,132.0,0.2]
[1763659914803,20.29258343,132.01,132.0,0.2]